Cogmind - Beta 16 @@@ ROGUE MODE // 2025.12.27 @ 18:17:56 Player: celerysam Result: Self-destructed Performance ------------- Evolutions (2) 1000 Regions Visited (3) 600 Robots Destroyed (34) 170 Value Destroyed (722) 722 Prototype IDs (2) 40 Alien Tech Used (0) 0 Bonus (0) 0 TOTAL SCORE: 2532 Bonus ------- None Cogmind --------- Core Integrity 513/550 Matter 9/300 Energy 280/280 System Corruption 3% Temperature Cool (0) Movement Walking (190) Ox1 Location -8/Materials Parts ------- > --- POWER (1) -------- Cooled Ion Engine > --- PROPULSION (4) --- Carbon-fiber Leg Carbon-fiber Leg > --- UTILITY (4) ------ Cooling System Large Storage Unit Reactive Plating > --- WEAPON (2) ------- Improved Light Cannon Flak Cannon > --- INVENTORY (15) --- Ion Engine Light Nuclear Core Light Nuclear Core Carbon-fiber Leg Improved Hover Unit Cryofiber Web Signal Interpreter Improved Terrain Scanner Hacking Suite Shock Rifle Improved Light Cannon Mining Laser Peak State ------------ > --- POWER ------------ Cooled Ion Engine > --- PROPULSION ------- Carbon-fiber Leg Carbon-fiber Leg > --- UTILITY ---------- Cooling System Large Storage Unit Reactive Plating > --- WEAPON ----------- Improved Light Cannon Flak Cannon > --- INVENTORY -------- Ion Engine Light Nuclear Core Light Nuclear Core Carbon-fiber Leg Improved Hover Unit Cryofiber Web Signal Interpreter Improved Terrain Scanner Hacking Suite Shock Rifle Improved Light Cannon Mining Laser [Rating: 22] Favorites ----------- Power Cooled Ion Engine Engine Cooled Ion Engine Propulsion Wheel Leg Aluminum Leg Wheel Wheel Utility ECM Suite Device ECM Suite Storage Small Storage Unit Protection Medium Armor Plating Weapon Flak Cannon Energy Gun Medium Laser Ballistic Gun Assault Rifle Ballistic Cannon Flak Cannon Build | -11 -10 -9 -8 ------- Run | Yrd Mat Mat Mat Slots Evolved 4 | . . 2 2 Power . | . . . . Propulsion 2 | . . 1 1 Utility 2 | . . 1 1 Weapon . | . . . . Parts Attached 32 | 6 4 16 6 Power 3 | 1 1 1 . Engine 3 | 1 1 1 . Core . | . . . . Reactor . | . . . . Propulsion 11 | 2 1 6 2 Treads . | . . . . Leg 5 | 2 1 . 2 Wheel 6 | . . 6 . Hover . | . . . . Flight . | . . . . Utility 7 | 1 1 3 2 Device 2 | . 1 . 1 Storage 2 | 1 . 1 . Processor . | . . . . Hackware . | . . . . Protection 3 | . . 2 1 Artifact . | . . . . Weapon 11 | 2 1 6 2 Energy Gun 2 | . 1 . 1 Energy Cannon . | . . . . Ballistic Gun 2 | 2 . . . Ballistic Cannon 7 | . . 6 1 Launcher . | . . . . Special Weapon . | . . . . Impact Weapon . | . . . . Slashing Weapon . | . . . . Piercing Weapon . | . . . . Special Melee Weapon . | . . . . Unidentified Prototypes 2 | . . 1 1 Corrupted Parts 1 | . . . 1 System Corruption 2 | . . . 2 Parts Lost 7 | . . 2 5 Power . | . . . . Propulsion 5 | . . 2 3 Utility 2 | . . . 2 Weapon . | . . . . Highest Loss Streak 5 | . . 2 5 To Critical Strikes . | . . . . Average Backups 9 | 4 7 10 14 Power 1 | . 1 2 3 Propulsion 2 | 2 4 2 4 Utility 1 | . . 2 4 Weapon 2 | . 1 3 3 Tool/Special . | . . . . Unused Backups 15 | . 2 2 11 Power 3 | . . 1 2 Propulsion 4 | . 2 . 2 Utility 4 | . . . 4 Weapon 4 | . . 1 3 Tool/Special . | . . . . Average Slot Usage (%) 95 | . 99 95 85 Engine 11 | . 14 11 9 Leg 8 | . 28 1 1 Wheel 20 | . . 29 24 Device 11 | . 13 11 13 Storage 11 | . 14 11 9 Protection 6 | . . 8 9 Energy Gun 3 | . 12 . . Ballistic Gun 4 | . 15 . . Ballistic Cannon 14 | . . 20 17 Peak Build Rating 22 | 6 8 19 22 Average Rating 13 | 3 7 16 19 On Entrance 8 | . 6 8 19 Avg Prop Armor Cover (%) . | . . . . Naked Turns . | . . . . Heaviest Build 51 | 13 16 49 51 Greatest Support 42 | 20 20 42 36 Greatest Overweight (x) 4 | . . 3 4 Average Overweight (x) . | . . . 1 Largest Inventory Capacity 15 | 8 8 15 15 Average Capacity 10 | 6 8 10 15 Most Carried 15 | 6 8 14 15 Average Carried 9 | 4 7 10 14 Final Capacity 15 | 8 8 15 15 Final Carried 14 | 6 8 14 12 Class Distribution -------------------- 100% | Mutant Dominant Class ---------------- Mutant | -10/Materials Mutant | -9/Materials Mutant | -8/Materials Resources | -11 -10 -9 -8 ----------- Run | Yrd Mat Mat Mat Matter Collected 908 | 250 109 531 18 Remotely . | . . . . Salvage Created 699 | . 203 478 18 Parts 50 | . 12 34 4 Haulers Intercepted 3 | . 1 2 . Recyclers Shooed 2 | . . 2 . Parts Field Recycled . | . . . . Retrieved Matter . | . . . . Parts Self-Destructed . | . . . . Prevented . | . . . . Parts Restored . | . . . . Kills | -11 -10 -9 -8 ------- Run | Yrd Mat Mat Mat Combat Hostiles Destroyed 27 | . 5 21 1 Guns 5 | . 5 . . Cannons 22 | . . 21 1 Classes Destroyed 9 | . 4 5 . Worker 1 | . . 1 . Hauler 3 | . 1 2 . Operator 1 | . 1 . . Watcher 2 | . . 2 . Swarmer 12 | . 3 8 1 Grunt 11 | . 2 9 . Brawler 1 | . . 1 . Duelist 1 | . . 1 . Sentry 2 | . . 2 . Best Kill Streak 6 | . 3 6 1 Combat Bots Only 6 | . 3 6 1 Max Kills in Single Turn 2 | . 1 2 1 Gunslinging . | . . . . Exploded . | . . . . Melee . | . . . . Uniques/NPCs Destroyed . | . . . . Combat | -11 -10 -9 -8 -------- Run | Yrd Mat Mat Mat Hostile Shots Fired 176 | . 37 86 53 Missed 45 | . 9 26 10 Hits 131 | . 28 60 43 Melee 2 | . . 2 . Projectile 129 | . 28 58 43 Critical Strikes 2 | . . 1 1 Damage Taken 1300 | . 294 655 351 Core 121 | . 40 44 37 Absorbed by Shields . | . . . . Ignored by Resistances 63 | . . . 63 Core Remaining (%) 91 | 100 84 89 . Volleys Fired 79 | . 27 48 4 Largest 2 | . 2 2 2 Hottest 74 | . 70 74 70 Shots Fired 156 | . 54 96 6 Gun 54 | . 54 . . Cannon 102 | . . 96 6 Launcher . | . . . . Special . | . . . . Kinetic 130 | . 28 96 6 Thermal 26 | . 26 . . Explosive . | . . . . Electromagnetic . | . . . . Robot Hit Streak 10 | . 9 10 2 Robot Miss Streak 11 | . 1 11 3 Penetration Max . | . . . . Secondary Targets 1 | . 1 . . Max Gunslinging Chain 1 | . 1 . . Shots Hit Robots 120 | . 39 79 2 Core Hits 96 | . 13 81 2 Critical Kills . | . . . . Critical Parts Destroyed . | . . . . Critical Strikes 2 | . 2 . . Burn 2 | . 2 . . Melee Attacks . | . . . . Impact . | . . . . Slashing . | . . . . Piercing . | . . . . Sneak Attacks . | . . . . Combat Hostiles . | . . . . Follow-up Attacks . | . . . . Damage Inflicted 1841 | . 472 1320 49 Guns 470 | . 470 . . Cannons 1347 | . . 1313 34 Explosions . | . . . . Melee . | . . . . Ramming 24 | . 2 7 15 Kinetic 1579 | . 232 1313 34 Thermal 238 | . 238 . . Explosive . | . . . . Electromagnetic . | . . . . Impact . | . . . . Slashing . | . . . . Piercing . | . . . . Highest Corruption 3 | . . . 3 Average Corruption 2 | . . . 2 Corruption Purged . | . . . . Corruption Blocked . | . . . . Effects 2 | . . . 2 Matter Fused 1 | . . . 1 Data Loss (minor) 1 | . . . 1 Overload Shots . | . . . . Overflow Damage . | . . . . Projectiles . | . . . . Explosions . | . . . . Melee . | . . . . Knockbacks 36 | . . 35 1 Impact . | . . . . Kinetic 34 | . . 33 1 Secondary 2 | . . 2 . Self-Inflicted Damage 10 | . . 3 7 Shots . | . . . . Rammed 3 | . . 1 2 Targets Rammed 4 | . 1 1 2 Kicked 1 | . 1 . . Crushed . | . . . . Highest Temperature 120 | . 84 120 . Average Temperature 30 | . 29 31 . Received Heat Transfer 276 | . 90 150 36 Siege Activations . | . . . . Martial Activations . | . . . . Shielding Activations . | . . . . Robots Disrupted . | . . . . Combat Hostiles . | . . . . Robots Corrupted . | . . . . Combat Hostiles . | . . . . Parts Fried . | . . . . Impact Corruptions . | . . . . Robots Melted . | . . . . Combat Hostiles . | . . . . Parts Melted 1 | . 1 . . Heat Transferred 851 | . 851 . . Parts Sabotaged . | . . . . Parts Stolen . | . . . . Parts Stripped . | . . . . Power Chain Reactions . | . . . . Alert | -11 -10 -9 -8 ------- Run | Yrd Mat Mat Mat Maximum Alert Level 1 | . . 1 . Low Security (%) 73 | 100 100 56 100 Level 1 26 | . . 43 . Level 2 . | . . . . Level 3 . | . . . . Level 4 . | . . . . Level 5 . | . . . . High Security . | . . . . Max Security . | . . . . Peak Influence 276 | . 60 276 87 Initial 87 | . . 1 87 Average 110 | . 18 166 64 Influence Increases 726 | . 133 533 60 Destroy 0b10 Robot/C 540 | . 100 420 20 Destroy 0b10 Robot/NC 35 | . 10 25 . Destroy Leader 120 | . 22 88 10 Destroy Structure 1 | . 1 . . Lose Combat Pursuer 30 | . . . 30 Influence Decreases 679 | . 128 331 220 Entered New Map 124 | . . 4 120 Time Decay 485 | . 128 307 50 Lost Part 70 | . . 20 50 Squads Dispatched 8 | . 2 5 1 Investigation 2 | . . 2 . Extermination . | . . . . Reinforcement 6 | . 2 3 1 Assault . | . . . . Garrison . | . . . . Intercept . | . . . . Searches Triggered . | . . . . Construction Impeded . | . . . . Haulers Reinforced . | . . . . Active Scanning Responses . | . . . . Cargo Convoy Interrupts . | . . . . Stealth | -11 -10 -9 -8 --------- Run | Yrd Mat Mat Mat Distress Signals 5 | . 1 3 1 Communications Jammed . | . . . . Distress Signals . | . . . . Times Spotted 57 | . 9 36 12 Peak Tracking Total 15 | . 4 5 15 Tactical Retreats 5 | . . 3 2 ECM-based Alert Blocks 4 | . . 4 . Traps | -11 -10 -9 -8 ------- Run | Yrd Mat Mat Mat Traps Triggered 4 | . 1 1 2 Indirectly . | . . . . Trap Hack Attempts . | . . . . Triggered . | . . . . Disarmed . | . . . . Reprogrammed . | . . . . Reused . | . . . . Traps Extracted . | . . . . Installed . | . . . . Triggered . | . . . . Machines | -11 -10 -9 -8 ---------- Run | Yrd Mat Mat Mat Machines Disabled . | . . . . Max in Single Turn . | . . . . Machines Repaired . | . . . . Machines Dismantled . | . . . . Machines Sabotaged . | . . . . Overloaded Fab Kills . | . . . . Hacking | -11 -10 -9 -8 --------- Run | Yrd Mat Mat Mat Machines Accessed 2 | . . 2 . Terminals . | . . . . Fabricators . | . . . . Repair Stations . | . . . . Recycling Units . | . . . . Scanalyzers 2 | . . 2 . Garrison Access . | . . . . Total Hacks 7 | . . 7 . Successful 4 | . . 4 . Failed 2 | . . 2 . Catastrophic . | . . . . Database Lockouts 1 | . . 1 . Manual . | . . . . Terminals . | . . . . Fabricators . | . . . . Repair Stations . | . . . . Recycling Units . | . . . . Scanalyzers 7 | . . 7 . Garrison Access . | . . . . Terminal Hacks . | . . . . Fabricator Hacks . | . . . . Repair Station Hacks . | . . . . Recycling Unit Hacks . | . . . . Scanalyzer 4 | . . 4 . Insert Component 2 | . . 2 . Analyze 1 | . . 1 . Retrieve Study 1 | . . 1 . Garrison Access Hacks . | . . . . Unauthorized Hacks . | . . . . Terminals . | . . . . Fabricators . | . . . . Repair Stations . | . . . . Recycling Units . | . . . . Scanalyzers . | . . . . Garrison Access . | . . . . Data Cores Recovered . | . . . . Used . | . . . . Hacking Detections 2 | . . 2 . Full Trace Events 1 | . . 1 . Feedback Events . | . . . . Feedback Blocked . | . . . . Robot Schematics Acquired . | . . . . Robots Built . | . . . . Authchips . | . . . . Time . | . . . . Total Robot Build Rating . | . . . . Part Schematics Acquired 1 | . . 1 . Parts Built . | . . . . Authchips . | . . . . Time . | . . . . Total Part Build Rating . | . . . . Part Studies Acquired 1 | . . 1 . Parts Repaired . | . . . . Time . | . . . . Parts Recycled . | . . . . Recycled Matter . | . . . . Retrieved Matter . | . . . . Retrieved Components . | . . . . Parts Scanalyzed 1 | . . 1 . Part Schematics Acquired 1 | . . 1 . Parts Damaged . | . . . . Bothacking | -11 -10 -9 -8 ------------ Run | Yrd Mat Mat Mat Used RIF Installer . | . . . . Robots Hacked . | . . . . Non-combat . | . . . . Combat . | . . . . Robot Hacks Applied . | . . . . Relay Couplers Released . | . . . . Fabnet Peak Effective % . | . . . . Robots Rewired . | . . . . Allies Hacked . | . . . . Hacks Repelled . | . . . . Allies | -11 -10 -9 -8 -------- Run | Yrd Mat Mat Mat Total Allies . | . . . . Largest Group . | . . . . Highest-Rated Group . | . . . . Highest-Rated Ally . | . . . . Total Orders . | . . . . Ally Attacks . | . . . . Total Damage . | . . . . Kills . | . . . . Allies Corrupted . | . . . . Allies Melted . | . . . . Intel | -11 -10 -9 -8 ------- Run | Yrd Mat Mat Mat Active Infowar (turns) 1221 | . 350 812 59 ECM 1221 | . 350 812 59 Robot Analysis Total . | . . . . Derelict Logs Recovered . | . . . . Drone Launches . | . . . . Drone Recoveries . | . . . . Exploration | -11 -10 -9 -8 ------------- Run | Yrd Mat Mat Mat Turns Passed 1349 | 61 364 812 112 Spaces Moved 943 | 50 205 605 83 Core 20 | 20 . . . Treads . | . . . . Legs 258 | 30 205 22 1 Wheels 665 | . . 583 82 Hover . | . . . . Flight . | . . . . Fastest Speed 50 | 50 120 86 101 Average Speed 102 | 92 120 97 103 Slowest Speed 190 | 120 120 190 190 Overloaded Moves . | . . . . Propulsion Burnouts . | . . . . Robots Hopped . | . . . . Potential Cave-ins . | . . . . Cave-ins Triggered . | . . . . Exploration Rate (%) 27 | 4 37 56 11 Regions Visited 3 Branch Regions . Pre-discovered Areas . | . . . . Known Exits Taken . | . . . . Unknown Exits Taken 3 | 1 1 1 . Scrap Searched . | . . . . Spaces Dug . | . . . . Terrain Destroyed . | . . . . Melee . | . . . . Projectile . | . . . . AOE . | . . . . Terrain Rammed . | . . . . Walls Destroyed . | . . . . Machines Disabled . | . . . . Actions | -11 -10 -9 -8 --------- Run | Yrd Mat Mat Mat Total 1167 | 62 270 732 103 Wait 53 | . 22 31 . Move 940 | 49 204 604 83 Hop . | . . . . Pick Up 32 | 7 7 15 3 Fast Attach 13 | 5 . 5 3 Attach 6 | 1 1 1 3 Detach . | . . . . Swap 16 | . 3 12 1 Drop 24 | . 5 15 4 Fire 79 | . 27 48 4 Melee . | . . . . Ram 3 | . . 1 2 Kick 1 | . 1 . . Crush . | . . . . Escape Stasis . | . . . . Rewire . | . . . . Trap . | . . . . Miscellaneous . | . . . . Route ------- -11/Scrapyard -10/Materials -9/Materials (discovered 2 exits: [*Mat] / [*Min]) -8/Materials History --------- Turn | Location | Event 15 | -11/Scrapyard | Discovered new exit (range 15) 62 | -11/Scrapyard | Entered Materials 313 | -10/Materials | Build established: Mutant 404 | -10/Materials | Discovered new exit (range 9) 426 | -10/Materials | Entered another Materials area 426 | -9/Materials | Evolved 2 slots: Propulsion x1, Utility x1 752 | -9/Materials | Discovered new exit (range 13) 774 | -9/Materials | Central database locked down 1196 | -9/Materials | Discovered new exit (range 16) 1238 | -9/Materials | Entered another Materials area 1238 | -8/Materials | Evolved 2 slots: Propulsion x1, Utility x1 1350 | -8/Materials | Self-destructed Last Messages --------------- 01323_ Med. Armor Plating destroyed. 01324_ S-10 Pest knocked back. 01325_ ECM Suite destroyed. 01329_ S-10 Pest destroyed. 01332_ W-25 Informer sends out distress signal. 01336_ Triggered Shock Trap. 01336_ The floor emits a surge of raw power. 01336_ System corrupted (+1). 01338_ Slammed into S-10 Pest. 01340_ Com. Wheel destroyed. 01340_ S-10 Pest destroyed. 01343_ Wheel destroyed. 01345_ System corrupted: Component data lost. 01345_ Acquired 18 matter. 01346_ O-16 Technician uses terminal to summon reinforcements. 01346_ ALERT: Hostiles spotted, dispatching reinforcements to Terminal M006. 01346_ O-16 Technician locks terminal. 01346_ Wheel destroyed. Map ----- +----------------------------------------------------+ | ???????????????????????# [[ #+#### ######## | | ???????????????????????# [ # # #??????# | | ???????????????????????# # + +??????# | | ???????????????????????######## ] ## #??????+ | | ??????????????????????????????# ! [## #??????# | | ??????????????????????????????# ![[## +??????# | | ??????????????????????????????# ![[## ##??????# | | ??????????????????????????????# ## #???????? | | ??????????????????????????????# ## #????#### | | ??????????????????????????????# ## #?? # | | ?????????????????????????????#####+## # # | | ?????????????????????? + ! # | | ?????????????????????????????##%### # #??? | | ???????????????????????????####/### #########??? | | ???????????????????????????# =* + | | ???????????????????????????# ###+#######????? | | ???????????????????????????# """ #??????????????? | | ???????????????????????????# """ #??????????????? | | ???????????????????????????# """ #??????????????? | | ???????????????????????????# !#??????????????? | | ???????????????????????########+####?????????????? | | ???????????????????????# Y/ #?????????????? | | ???????????????????????# s"" # #?????????????? | | ???????????????????????# ssT" # #?????????????? | | ???????????????????????#!!o"" # ????????????? | | ???????????????????????#!@^s # ###???????????? | | ???????????????????????#* =sY # #?????????????? | | ???????????????????????#### ### ##+#?????????????? | | ??????????????????????????###?#+#????????????????? | | ?????????????????????????????????????????????????? | | ?????????????????????????????????????????????????? | | ?????????????????????????????????????????????????? | | ?????????????????????????????????????????????????? | | ?????????????????????????????????????????????????? | | ?????????????????????????????????????????????????? | | ?????????????????????????????????????????????????? | | ?????????????????????????????????????????????????? | | ?????????????????????????????????????????????????? | | ?????????????????????????????????????????????????? | | ?????????????????????????????????????????????????? | | ?????????????????????????????????????????????????? | | ?????????????????????????????????????????????????? | | ?????????????????????????????????????????????????? | | ?????????????????????????????????????????????????? | | ?????????????????????????????????????????????????? | | ?????????????????????????????????????????????????? | | ?????????????????????????????????????????????????? | | ?????????????????????????????????????????????????? | | ?????????????????????????????????????????????????? | | ?????????????????????????????????????????????????? | +----------------------------------------------------+ Best States ------------- Heat Dissipation 53 Energy Generation 14 Energy Capacity 280 Matter Stores 300 Matter Capacity 300 Sight Range 16 Terrain Scan Density 10 ECM Strength 1 Armor Coverage 225 Resistance: KI 20 Evasion (%) 55 Item Schematics ----------------- Imp. Light Cannon | -9/Materials | Scanalyzed Robot Schematics ------------------ None Fabricated ------------ Nothing Repaired ---------- Nothing Studied --------- Imp. Hover Unit | -9/Materials | Hacked Alien Tech Used ----------------- None Achievements -------------- A Problem For Future Me Challenges ------------ None Game ------ Seed HeartStasisNeutralizer Manual? 0 Play Time 00:14:52 Cumulative 279.9 hours Start 2025.12.20 @ 11:21:25 End 2025.12.27 @ 18:17:56 Sessions 3 Manual Loads 0 Difficulty Rogue Special Mode None Game No. 445 Rogue 445 Adventurer 0 Explorer 0 Win Type - Total 1 Types 1/0/0/0/0/0/0/0/0/0 Lore% 65 Gallery% 62 Achievement% 30 Wizard Run 0 Options --------- Layout 1 ASCII 0 Keyboard 0 Movement Mouse Keybinds 0 Fullscreen 2 Font 24/Smallcaps Map View 50x35 Zoom Use 0% Tactical HUD 1 Map Filters NONE Filters NONE Steam 1 RUN: 5e1e491e-a349-44df-a0bb-8b043967190e